Cogmind - Beta 16 @@@ ROGUE MODE // 2025.12.28 @ 16:35:02 // Winter2022/Polymind Player: Compilatron Result: Destroyed by Y-45 Defender with Heavy Assault Rifle Performance ------------- Evolutions (2) 1000 Regions Visited (3) 600 Robots Destroyed (3) 15 Value Destroyed (67) 67 Prototype IDs (0) 0 Alien Tech Used (0) 0 Bonus (1555) 1555 TOTAL SCORE: 2987 Bonus ------- Polymind Skill 1085 Pacifist 470 Cogmind --------- Core Integrity 0/550 Matter 0/0 Energy 100/100 System Corruption 1% Temperature Cool (27) Movement Core (50) Location -8/Materials Parts ------- > --- POWER (1) -------- (None) > --- PROPULSION (2) --- (None) > --- UTILITY (2) ------ (None) > --- WEAPON (1) ------- (None) > --- INVENTORY (0) ---- (None) Peak State ------------ > --- POWER ------------ Improved Ion Engine > --- PROPULSION ------- Improved Aluminum Leg Improved Aluminum Leg > --- UTILITY ---------- Melee Analysis Suite Core Shielding > --- WEAPON ----------- Katana > --- INVENTORY -------- (None) [Rating: 13] Favorites ----------- Power Light Ion Engine Engine Light Ion Engine Propulsion Hover Unit Leg Improved Aluminum Leg Wheel Compact Wheel Hover Unit Hover Unit Utility Hacking Suite Device Tractor Beam Storage Small Storage Unit Processor Melee Analysis Suite Hackware Hacking Suite Protection Core Shielding Weapon Datajack Slashing Weapon Katana Special Melee Weapon Datajack Build | -11 -10 -9 -8 ------- Run | Yrd Mat Mat Mat Slots Evolved . | . . . . Power . | . . . . Propulsion . | . . . . Utility . | . . . . Weapon . | . . . . Parts Attached . | . . . . Power . | . . . . Engine . | . . . . Core . | . . . . Reactor . | . . . . Propulsion . | . . . . Treads . | . . . . Leg . | . . . . Wheel . | . . . . Hover . | . . . . Flight . | . . . . Utility . | . . . . Device . | . . . . Storage . | . . . . Processor . | . . . . Hackware . | . . . . Protection . | . . . . Artifact . | . . . . Weapon . | . . . . Energy Gun . | . . . . Energy Cannon . | . . . . Ballistic Gun . | . . . . Ballistic Cannon . | . . . . Launcher . | . . . . Special Weapon . | . . . . Impact Weapon . | . . . . Slashing Weapon . | . . . . Piercing Weapon . | . . . . Special Melee Weapon . | . . . . Unidentified Prototypes . | . . . . Parts Lost 4 | . . . 4 Power 1 | . . . 1 Propulsion 2 | . . . 2 Utility 1 | . . . 1 Weapon . | . . . . Highest Loss Streak 4 | . . . 4 To Critical Strikes . | . . . . Average Backups . | . 1 . . Power . | . . . . Propulsion . | . . . . Utility . | . . . . Weapon . | . . . . Tool/Special . | . . . . Unused Backups 4 | . 2 . 2 Power . | . . . . Propulsion 2 | . 1 . 1 Utility 2 | . 1 . 1 Weapon . | . . . . Tool/Special . | . . . . Average Slot Usage (%) 84 | . 86 100 78 Engine 16 | . 17 20 14 Leg 3 | . . . 5 Wheel 10 | . 32 . . Hover 17 | . 2 40 19 Device 5 | . 16 . . Storage 5 | . 16 . . Processor 3 | . . . 6 Hackware 8 | . 1 20 9 Protection 3 | . . . 6 Slashing Weapon 3 | . . . 6 Special Melee Weapon 8 | . 1 20 9 Peak Build Rating 13 | 5 7 7 13 Average Rating 6 | 3 4 7 7 On Entrance 4 | . 5 7 7 Avg Prop Armor Cover (%) . | . . . . Naked Turns 55 | . 18 . 37 Heaviest Build 10 | 9 9 4 10 Greatest Support 32 | 32 32 14 26 Greatest Overweight (x) 3 | . . . 3 Average Overweight (x) . | . . . . Largest Inventory Capacity 4 | 4 4 1 1 Average Capacity 1 | 2 3 1 . Most Carried 2 | . 2 . 1 Average Carried . | . 1 . . Final Capacity 4 | 4 1 1 . Final Carried . | . . . . Class Distribution -------------------- 40% | Operator 25% | Recycler 22% | Duelist 12% | Cogmind Dominant Class ---------------- Recycler | -10/Materials Operator | -9/Materials Operator | -8/Materials Resources | -11 -10 -9 -8 ----------- Run | Yrd Mat Mat Mat Matter Collected . | . . . . Remotely . | . . . . Salvage Created 81 | . . . 81 Parts 9 | . . . 9 Haulers Intercepted . | . . . . Recyclers Shooed . | . . . . Parts Field Recycled . | . . . . Retrieved Matter . | . . . . Parts Self-Destructed . | . . . . Prevented . | . . . . Parts Restored . | . . . . Kills | -11 -10 -9 -8 ------- Run | Yrd Mat Mat Mat Combat Hostiles Destroyed 3 | . . . 3 Melee 3 | . . . 3 Classes Destroyed 2 | . . . 2 Swarmer 2 | . . . 2 Grunt 1 | . . . 1 Best Kill Streak 2 | . . . 2 Combat Bots Only 2 | . . . 2 Max Kills in Single Turn 1 | . . . 1 Gunslinging . | . . . . Exploded . | . . . . Melee 1 | . . . 1 Uniques/NPCs Destroyed . | . . . . Combat | -11 -10 -9 -8 -------- Run | Yrd Mat Mat Mat Hostile Shots Fired 124 | . 32 2 90 Missed 34 | . 13 1 20 Hits 90 | . 19 1 70 Melee 2 | . . . 2 Projectile 88 | . 19 1 68 Critical Strikes 1 | . . . 1 Damage Taken 1145 | . 159 12 974 Core 652 | . 95 . 557 Absorbed by Shields . | . . . . Redirected to Shielding 51 | . . . 51 Core Remaining (%) 87 | 100 62 100 . Volleys Fired . | . . . . Largest . | . . . . Hottest . | . . . . Shots Fired . | . . . . Gun . | . . . . Cannon . | . . . . Launcher . | . . . . Special . | . . . . Kinetic . | . . . . Thermal . | . . . . Explosive . | . . . . Electromagnetic . | . . . . Robot Hit Streak . | . . . . Robot Miss Streak . | . . . . Penetration Max . | . . . . Secondary Targets . | . . . . Shots Hit Robots 18 | . . 1 17 Core Hits 4 | . . . 4 Critical Kills . | . . . . Critical Parts Destroyed . | . . . . Critical Strikes 3 | . . . 3 Sever 3 | . . . 3 Melee Attacks 24 | . . 1 23 Impact . | . . . . Slashing 22 | . . . 22 Piercing . | . . . . Sneak Attacks 3 | . . 1 2 Combat Hostiles 1 | . . . 1 Follow-up Attacks . | . . . . Damage Inflicted 593 | . 4 . 589 Guns . | . . . . Cannons . | . . . . Explosions . | . . . . Melee 559 | . . . 559 Ramming 34 | . 4 . 30 Kinetic . | . . . . Thermal . | . . . . Explosive . | . . . . Electromagnetic . | . . . . Impact . | . . . . Slashing 559 | . . . 559 Piercing . | . . . . Highest Corruption 1 | . . . 1 Average Corruption 1 | . . . 1 Corruption Purged . | . . . . Corruption Blocked . | . . . . Overload Shots . | . . . . Overflow Damage 35 | . . . 35 Projectiles . | . . . . Explosions . | . . . . Melee 35 | . . . 35 Knockbacks . | . . . . Impact . | . . . . Kinetic . | . . . . Secondary . | . . . . Self-Inflicted Damage 16 | . 2 . 14 Shots . | . . . . Rammed 6 | . 1 . 5 Targets Rammed 6 | . 1 . 5 Kicked . | . . . . Crushed . | . . . . Highest Temperature 15 | . . . 15 Average Temperature 7 | . . . 7 Received Heat Transfer 279 | . . . 279 Siege Activations . | . . . . Martial Activations . | . . . . Shielding Activations . | . . . . Robots Disrupted . | . . . . Combat Hostiles . | . . . . Robots Corrupted . | . . . . Combat Hostiles . | . . . . Parts Fried . | . . . . Impact Corruptions . | . . . . Robots Melted . | . . . . Combat Hostiles . | . . . . Parts Melted . | . . . . Heat Transferred . | . . . . Parts Sabotaged . | . . . . Parts Stolen . | . . . . Parts Stripped . | . . . . Power Chain Reactions . | . . . . Alert | -11 -10 -9 -8 ------- Run | Yrd Mat Mat Mat Maximum Alert Level . | . . . . Low Security (%) 100 | 100 100 100 100 Level 1 . | . . . . Level 2 . | . . . . Level 3 . | . . . . Level 4 . | . . . . Level 5 . | . . . . High Security . | . . . . Max Security . | . . . . Peak Influence 45 | . . 7 45 Initial . | . . . . Average 5 | . . 1 10 Influence Increases 162 | . . 13 149 Destroy 0b10 Robot/C 60 | . . . 60 Destroy Leader 10 | . . . 10 Successful Hack 17 | . . 13 4 Lose Combat Pursuer 75 | . . . 75 Influence Decreases 117 | . . 13 104 Time Decay 77 | . . 13 64 Lost Part 40 | . . . 40 Squads Dispatched 2 | . . . 2 Investigation . | . . . . Extermination . | . . . . Reinforcement 2 | . . . 2 Assault . | . . . . Garrison . | . . . . Intercept . | . . . . Searches Triggered . | . . . . Construction Impeded . | . . . . Haulers Reinforced . | . . . . Active Scanning Responses . | . . . . Cargo Convoy Interrupts . | . . . . Stealth | -11 -10 -9 -8 --------- Run | Yrd Mat Mat Mat Distress Signals 1 | . . . 1 Communications Jammed . | . . . . Distress Signals . | . . . . Times Spotted 32 | . 8 1 23 Peak Tracking Total 6 | . 5 1 6 Tactical Retreats 3 | . . . 3 Traps | -11 -10 -9 -8 ------- Run | Yrd Mat Mat Mat Traps Triggered 1 | . . . 1 Indirectly . | . . . . Trap Hack Attempts . | . . . . Triggered . | . . . . Disarmed . | . . . . Reprogrammed . | . . . . Reused . | . . . . Traps Extracted . | . . . . Installed . | . . . . Triggered . | . . . . Objects Rigged 1 | . . 1 . Machines | -11 -10 -9 -8 ---------- Run | Yrd Mat Mat Mat Machines Disabled . | . . . . Max in Single Turn . | . . . . Machines Repaired . | . . . . Machines Dismantled . | . . . . Machines Sabotaged . | . . . . Overloaded Fab Kills . | . . . . Hacking | -11 -10 -9 -8 --------- Run | Yrd Mat Mat Mat Machines Accessed 5 | . . 3 2 Terminals 4 | . . 2 2 Fabricators . | . . . . Repair Stations . | . . . . Recycling Units . | . . . . Scanalyzers 1 | . . 1 . Garrison Access . | . . . . Total Hacks 14 | . . 7 7 Successful 9 | . . 5 4 Failed 5 | . . 2 3 Catastrophic 1 | . . 1 . Database Lockouts . | . . . . Manual 12 | . . 5 7 Terminals 12 | . . 5 7 Fabricators . | . . . . Repair Stations . | . . . . Recycling Units . | . . . . Scanalyzers 2 | . . 2 . Garrison Access . | . . . . Terminal Hacks 1 | . . 1 . Unreport Threat 1 | . . 1 . Fabricator Hacks . | . . . . Repair Station Hacks . | . . . . Recycling Unit Hacks . | . . . . Scanalyzer 2 | . . 2 . Retrieve Study 2 | . . 2 . Garrison Access Hacks . | . . . . Unauthorized Hacks 6 | . . 2 4 Terminals 6 | . . 2 4 Track 1 | . . . 1 Assimilate 1 | . . . 1 Botnet 2 | . . 1 1 Detonate 1 | . . 1 . Operators 1 | . . . 1 Fabricators . | . . . . Repair Stations . | . . . . Recycling Units . | . . . . Scanalyzers . | . . . . Garrison Access . | . . . . Data Cores Recovered . | . . . . Used . | . . . . Hacking Detections 4 | . . 2 2 Full Trace Events . | . . . . Feedback Events . | . . . . Feedback Blocked . | . . . . Robot Schematics Acquired . | . . . . Robots Built . | . . . . Authchips . | . . . . Time . | . . . . Total Robot Build Rating . | . . . . Part Schematics Acquired . | . . . . Parts Built . | . . . . Authchips . | . . . . Time . | . . . . Total Part Build Rating . | . . . . Part Studies Acquired 2 | . . 2 . Parts Repaired . | . . . . Time . | . . . . Parts Recycled . | . . . . Recycled Matter . | . . . . Retrieved Matter . | . . . . Retrieved Components . | . . . . Parts Scanalyzed . | . . . . Part Schematics Acquired . | . . . . Parts Damaged . | . . . . Bothacking | -11 -10 -9 -8 ------------ Run | Yrd Mat Mat Mat Used RIF Installer . | . . . . Robots Hacked 3 | . 1 . 2 Non-combat 2 | . 1 . 1 Combat 1 | . . . 1 Robot Hacks Applied 4 | . 1 . 3 find_terminals 2 | . 1 . 1 find_shortcuts 1 | . . . 1 find_garrison 1 | . . . 1 Relay Couplers Released . | . . . . Fabnet Peak Effective % . | . . . . Robots Rewired . | . . . . Allies Hacked . | . . . . Hacks Repelled . | . . . . Allies | -11 -10 -9 -8 -------- Run | Yrd Mat Mat Mat Total Allies . | . . . . Largest Group . | . . . . Highest-Rated Group . | . . . . Highest-Rated Ally . | . . . . Total Orders . | . . . . Ally Attacks . | . . . . Total Damage . | . . . . Kills . | . . . . Allies Corrupted . | . . . . Allies Melted . | . . . . Intel | -11 -10 -9 -8 ------- Run | Yrd Mat Mat Mat Active Infowar (turns) . | . . . . Robot Analysis Total 3 | 1 1 . 1 Derelict Logs Recovered . | . . . . Drone Launches . | . . . . Drone Recoveries . | . . . . Exploration | -11 -10 -9 -8 ------------- Run | Yrd Mat Mat Mat Turns Passed 468 | 13 139 70 246 Spaces Moved 581 | 15 158 123 285 Core 115 | 6 35 . 74 Treads . | . . . . Legs 23 | . . . 23 Wheels 121 | 9 112 . . Hover 322 | . 11 123 188 Flight . | . . . . Fastest Speed 50 | 50 50 56 50 Average Speed 68 | 80 85 56 63 Slowest Speed 200 | 100 100 56 200 Overloaded Moves . | . . . . Propulsion Burnouts . | . . . . Robots Hopped . | . . . . Potential Cave-ins . | . . . . Cave-ins Triggered . | . . . . Exploration Rate (%) 22 | 3 34 28 25 Regions Visited 3 Branch Regions . Pre-discovered Areas . | . . . . Known Exits Taken . | . . . . Unknown Exits Taken 3 | 1 1 1 . Scrap Searched . | . . . . Spaces Dug . | . . . . Terrain Destroyed . | . . . . Melee . | . . . . Projectile . | . . . . AOE . | . . . . Terrain Rammed . | . . . . Walls Destroyed . | . . . . Machines Disabled . | . . . . Actions | -11 -10 -9 -8 --------- Run | Yrd Mat Mat Mat Total 613 | 15 160 123 315 Wait 1 | 1 . . . Move 578 | 14 157 122 285 Hop . | . . . . Pick Up 4 | . 2 . 2 Fast Attach . | . . . . Attach . | . . . . Detach . | . . . . Swap . | . . . . Drop . | . . . . Fire . | . . . . Melee 24 | . . 1 23 Ram 6 | . 1 . 5 Kick . | . . . . Crush . | . . . . Escape Stasis . | . . . . Rewire . | . . . . Trap . | . . . . Miscellaneous . | . . . . Route ------- -11/Scrapyard -10/Materials -9/Materials -8/Materials History --------- Turn | Location | Event 1 | -11/Scrapyard | Discovered new exit (range 1) 14 | -11/Scrapyard | Entered Materials 138 | -10/Materials | Discovered new exit (range 15) 153 | -10/Materials | Entered another Materials area 215 | -9/Materials | Discovered new exit (range 13) 223 | -9/Materials | Entered another Materials area 424 | -8/Materials | Core integrity fell below 50% 436 | -8/Materials | Core integrity fell below 20% 462 | -8/Materials | Lost 4 parts (1p2n1u) 469 | -8/Materials | Destroyed by Y-45 Defender with Heavy Assault Rifle Last Messages --------------- 00429_ Penetrated by Slug. 00429_ R-06 Scavenger destroyed. 00430_ R-06 Scavenger collects Flight Unit. 00430_ H-55 Commando Carbon-fiber Leg severed. 00431_ Core Shielding destroyed. 00432_ Penetrated by Slug. 00432_ R-06 Scavenger suffers critical hit (Destroy). 00432_ R-06 Scavenger destroyed. 00433_ Released control of L-31 Rogue. 00434_ Slammed into G-47 Trooper. 00434_ Triggered Blade Trap. 00434_ Massive razor-sharp blades shoot up from within the floor. 00434_ L-31 Rogue reactivates. 00436_ U-05 Engineer lays Concrete. 00437_ R-06 Scavenger collects Com. Wheel. 00464_ Slammed into Y-45 Defender. 00467_ Destabilizing: System corrupted (+1). 00469_ Critical hit (Burn: +37). Map ----- +----------------------------------------------------+ | | | | | | | | | | | | | | | | | | | | | | | | | | | | | | | | | | | | | | | | | | | | | | | ?????????????????????????????????????????????????? | | ???????????????????????########??????????????????? | | ???????????????????????# @""" #??????????????????? | | ??????????????????????##% "Y" #??????????????????? | | ??????????????????????#%%Y #??????????????????? | | ??????????????????????##]* #?######???????????? | | ???????????????????????#]% #? #???????????? | | ???????????????????????# # """#???????????? | | ???????????????????????####+### """#???????????? | | ???????????????????????# + """#???????????? | | ???????????????????????# #### # #???????????? | | ???????????????????????+????# # [ #???????????? | | ????????????????????????????# #?######???????????? | | ????????????????????????????# #??????????????????? | | ????????????????????????????# #??????????????????? | | ????????????????????????????# #??????????????????? | | ????????????????????????????# #??????????????????? | | ????????????????????????????# #??????????????????? | | ????????????????????????????# #??????????????????? | | ????????????????????????????# #??????????????????? | | ????????????????????????#####+##############?????? | | ????????????????????????# # #?????? | | ????????????????????????# ! ! # / #?????? | | ????????????????????????# # #?????? | | ????????????????????????# # #?????? | | ????????????????????????# """ ""# #?????? | | ????????????????????????# """ Y"# #?????? | +----------------------------------------------------+ Best States ------------- Heat Dissipation 25 Energy Generation 17 Energy Capacity 215 Sight Range 16 Terrain Scan Density 10 Resistance: S 25 Resistance: P 25 Core Shielding 20 Evasion (%) 53 Melee Accuracy 5 Offensive Hacking 10 Item Schematics ----------------- None Robot Schematics ------------------ None Fabricated ------------ Nothing Repaired ---------- Nothing Studied --------- Datajack | -9/Materials | Hacked Hover Unit | -9/Materials | Hacked Alien Tech Used ----------------- None Achievements -------------- None Challenges ------------ None Polymind | -11 -10 -9 -8 ---------- Run | Yrd Mat Mat Mat Hosts 4 | 1 1 . 2 Combat Hostiles 1 | . . . 1 Allies . | . . . . Unique Host Classes 3 | 1 1 . 1 Average Host Suspicion 63 | 1 53 43 78 Unsuspicious Activity 39 | 2 2 15 20 Returns to Shadow . | . . . . Fuzzy Dispatches . | . . . . Protomatter Created 7 | . . . 7 Used 44 | 5 5 . 34 Decayed . | . . . . Highest Spend 29 | 5 5 . 29 Top 5 Hosts by Kills: L-31 Rogue (-8/Materials: 3) Game ------ Seed MachineBurstDissipator Manual? 0 Play Time 00:08:55 Cumulative 78.6 hours Start 2025.12.28 @ 16:26:30 End 2025.12.28 @ 16:35:02 Sessions 1 Manual Loads 0 Difficulty Rogue Special Mode Winter2022/Polymind Game No. 119 Rogue 95 Adventurer 20 Explorer 4 Win Type - Total 1 Types 0/0/0/1/0/0/0/0/0/0 Lore% 45 Gallery% 42 Achievement% 32 Wizard Run 0 Options --------- Layout 1 ASCII 0 Keyboard 0 Movement Numpad Keybinds 0 Fullscreen 2 Font 24/Smallcaps Map View 50x35 Zoom Use 0% Tactical HUD 1 Map Filters NONE Filters NONE Steam 1 RUN: c177d38c-8428-4c04-87e7-914b95f2696b